bitfinex/quotes_BTCUSD_20240717
["timestamp","ask_amount","ask_price","bid_price","bid_amount"]
[1721240316812,0.07154,64530.0,64529.0,1.3630566]
[1721240317011,0.07154,64530.0,64529.0,2.5559946]
[1721240317012,0.00834,64530.0,64529.0,2.5559946]
[1721240317323,0.00834,64530.0,64529.0,2.40691933]
[1721240317517,0.00834,64530.0,64529.0,2.1405761]
[1721240317736,0.00834,64530.0,64529.0,1.8782946]
[1721240319111,0.00834,64530.0,64529.0,2.41479835]
[1721240319264,0.00834,64530.0,64529.0,1.74963953]
[1721240319475,0.00834,64530.0,64529.0,2.50712743]
[1721240319681,0.00834,64530.0,64529.0,2.42995264]
[1721240319921,0.00834,64530.0,64529.0,2.40686069]
[1721240320497,0.00834,64530.0,64529.0,2.46806069]
[1721240320901,0.00834,64530.0,64529.0,2.27510034]
[1721240321103,0.00834,64530.0,64529.0,3.16806069]
[1721240321500,0.00834,64530.0,64529.0,3.09877169]
[1721240321704,0.00834,64530.0,64529.0,3.21309036]
[1721240322161,0.12582632,64539.0,64531.0,0.82482]
[1721240322372,0.12582632,64539.0,64531.0,4.90945815]
[1721240322497,0.12582632,64539.0,64531.0,5.07014588]
[1721240323057,0.12582632,64539.0,64531.0,5.07014374]
[1721240323877,0.12582632,64539.0,64531.0,4.92336589]
[1721240324105,0.12582632,64539.0,64531.0,5.08414438]
[1721240324337,0.12582632,64539.0,64531.0,5.08414066]
[1721240324532,0.12582632,64539.0,64531.0,4.87336193]
[1721240324883,0.12582632,64539.0,64531.0,4.88736193]
[1721240325288,0.12582632,64539.0,64531.0,3.24968714]
[1721240325637,0.0639,64538.0,64531.0,2.12381818]
[1721240325766,0.0639,64538.0,64531.0,3.28970191]
[1721240326345,0.12582632,64539.0,64531.0,3.33970191]
[1721240326556,0.12582632,64539.0,64531.0,3.50048389]
[1721240326756,0.12582632,64539.0,64531.0,4.83970191]
[1721240327758,0.12582632,64539.0,64531.0,5.33970191]
[1721240328780,0.12582632,64539.0,64531.0,5.2753864]
[1721240328946,0.12582632,64539.0,64531.0,5.33969869]
[1721240330958,0.12582632,64539.0,64531.0,4.83969869]
[1721240331360,0.12582632,64539.0,64531.0,4.78969869]
[1721240331561,0.12582632,64539.0,64531.0,4.83969869]
[1721240332116,0.12582632,64539.0,64531.0,5.06585433]
[1721240332254,0.12582632,64539.0,64531.0,5.06585396]
[1721240332452,0.12582632,64539.0,64531.0,5.06585286]
[1721240333581,0.12582632,64539.0,64531.0,5.06585242]
[1721240335098,0.12582632,64539.0,64531.0,4.40084413]
[1721240335308,0.12582632,64539.0,64531.0,5.06584783]
[1721240336750,0.01332632,64539.0,64531.0,5.06584783]
[1721240337189,0.01332632,64539.0,64538.0,1.334629]
[1721240337366,0.01332632,64539.0,64538.0,3.35891444]
[1721240337670,0.01332632,64539.0,64538.0,3.45117092]
[1721240338022,0.01332632,64539.0,64538.0,3.51547824]
[1721240338226,0.01332632,64539.0,64538.0,2.75821801]
[1721240338576,0.01332632,64539.0,64538.0,3.40109052]
[1721240338710,0.01332632,64539.0,64538.0,2.55509052]
[1721240339103,0.01332632,64539.0,64538.0,2.47688499]
[1721240339324,0.01332632,64539.0,64538.0,2.56909052]
[1721240339476,0.01332632,64539.0,64538.0,2.47688499]
[1721240340056,0.01332632,64539.0,64538.0,2.54601019]
[1721240340436,0.01332632,64539.0,64538.0,2.9925723]
[1721240340583,0.01332632,64539.0,64538.0,2.79965048]
[1721240340764,0.01332632,64539.0,64538.0,2.2025723]
[1721240340978,0.01332632,64539.0,64538.0,2.00965047]
[1721240341202,0.01332632,64539.0,64538.0,1.40873456]
[1721240341540,0.07362632,64539.0,64538.0,1.60166129]
[1721240341770,0.07362632,64539.0,64538.0,1.40874499]
[1721240342156,0.07362632,64539.0,64538.0,1.73713908]
[1721240342846,0.06951418,64539.0,64538.0,1.73713958]
[1721240343078,0.06951418,64539.0,64538.0,1.71863866]
[1721240343500,0.06951418,64539.0,64538.0,1.42724558]
[1721240343686,0.06951418,64539.0,64538.0,1.40874466]
[1721240343903,0.00921418,64539.0,64538.0,1.81191074]
[1721240344096,0.00921418,64539.0,64538.0,2.17955341]
[1721240344820,0.00921418,64539.0,64538.0,1.97955341]
[1721240345218,0.00921418,64539.0,64538.0,2.17955341]
[1721240347074,0.00921418,64539.0,64538.0,1.81191074]
[1721240347362,0.00921418,64539.0,64538.0,2.17955232]
[1721240347516,0.00921418,64539.0,64538.0,2.13346194]
[1721240347904,0.00921418,64539.0,64538.0,2.16130194]
[1721240350297,0.00921418,64539.0,64538.0,2.16131421]
[1721240351425,0.00921418,64539.0,64538.0,4.30656728]
[1721240351621,0.00921418,64539.0,64538.0,4.19133788]
[1721240352035,0.00921418,64539.0,64538.0,4.22241788]
[1721240352213,1e-08,64541.0,64540.0,1.214197]
[1721240352413,1e-08,64541.0,64540.0,3.15254823]
[1721240352839,1e-08,64541.0,64540.0,3.46243323]
[1721240353252,1e-08,64541.0,64540.0,2.68223923]
[1721240353447,1e-08,64541.0,64540.0,3.37823335]
[1721240353917,1e-08,64541.0,64540.0,4.87823335]
[1721240354553,1e-08,64541.0,64540.0,4.90623335]
[1721240354769,1e-08,64541.0,64540.0,4.89223335]
[1721240354991,1e-08,64541.0,64540.0,4.87823335]
[1721240355205,1e-08,64541.0,64540.0,4.89223335]
[1721240355458,1e-08,64541.0,64540.0,4.90623335]
[1721240356050,1e-08,64541.0,64540.0,4.85623335]
[1721240356289,1e-08,64541.0,64540.0,4.90623335]
[1721240356489,1e-08,64541.0,64540.0,4.85619123]
[1721240356810,1e-08,64541.0,64540.0,4.96729123]
[1721240358057,1e-08,64541.0,64540.0,5.27717623]
[1721240358254,0.05161279,64555.0,64548.0,0.604923]
[1721240358478,0.05161279,64555.0,64548.0,3.15719823]
[1721240359425,0.05161279,64555.0,64548.0,4.34658223]
[1721240359563,0.05161279,64555.0,64548.0,4.37760495]
[1721240359767,0.05161279,64555.0,64548.0,4.42760495]
[1721240359973,0.05161279,64555.0,64548.0,4.42760439]
[1721240360194,0.05161279,64555.0,64548.0,4.37760439]
[1721240360394,0.05161279,64555.0,64548.0,4.42760439]
[1721240360803,0.05161279,64555.0,64548.0,4.0842471]
[1721240361007,0.05161279,64555.0,64548.0,4.44160008]
[1721240361206,0.05161279,64555.0,64548.0,4.4555989]
[1721240361490,0.05161279,64555.0,64548.0,4.4275989]
[1721240361689,0.05161279,64555.0,64548.0,4.3775989]
[1721240361906,0.05161279,64555.0,64548.0,4.4555989]
[1721240362934,0.05161279,64555.0,64548.0,4.45559887]
[1721240363603,0.05161279,64555.0,64548.0,4.13021119]
[1721240363934,0.07334,64552.0,64548.0,4.00825287]
[1721240364139,0.07334,64552.0,64548.0,4.12328204]
[1721240364340,0.07334,64552.0,64548.0,4.00825287]
[1721240364758,0.00383791,64549.0,64548.0,3.44840687]
[1721240364962,0.00383791,64549.0,64548.0,3.01165138]
[1721240365308,0.00383791,64549.0,64548.0,3.28069173]
[1721240365493,0.00383791,64549.0,64548.0,3.74339738]
[1721240365630,0.00383791,64549.0,64548.0,3.83544763]
[1721240366134,0.00383791,64549.0,64548.0,3.61485354]
[1721240366342,0.00383791,64549.0,64548.0,3.85850349]
[1721240367275,0.00383791,64549.0,64548.0,3.65850349]
[1721240367473,0.00383791,64549.0,64548.0,3.56644687]
[1721240369100,0.00383791,64549.0,64548.0,3.2230682]
[1721240369296,0.00383791,64549.0,64548.0,1.7184353]
[1721240369522,0.14643791,64549.0,64548.0,1.91132414]
[1721240369733,0.14643791,64549.0,64548.0,1.58984274]
[1721240369984,0.14643791,64549.0,64548.0,1.76448731]
[1721240370362,0.14643791,64549.0,64548.0,1.75048731]
[1721240370798,0.14643791,64549.0,64548.0,1.76448731]
[1721240370973,0.14643791,64549.0,64548.0,1.75048913]
[1721240371380,0.14643791,64549.0,64548.0,1.76448913]
[1721240371773,0.14643791,64549.0,64548.0,1.75048913]
[1721240372101,0.14643791,64549.0,64548.0,1.76448913]
[1721240372351,0.14643791,64549.0,64548.0,1.58984274]
[1721240372530,0.14643791,64549.0,64548.0,1.76449385]
[1721240372765,0.14643791,64549.0,64548.0,3.26449385]
[1721240372975,0.14643791,64549.0,64548.0,3.45739193]
[1721240373810,0.00383791,64549.0,64548.0,3.60269193]
[1721240374016,0.00383791,64549.0,64548.0,5.26176811]
[1721240374427,1e-08,64549.0,64548.0,5.42250068]
[1721240374678,1e-08,64549.0,64548.0,5.53761684]
[1721240375113,1e-08,64549.0,64548.0,5.52361684]
[1721240375326,1e-08,64549.0,64548.0,5.53761684]
[1721240375546,1e-08,64549.0,64548.0,5.20211254]
[1721240375749,1e-08,64549.0,64548.0,5.52357824]
[1721240376285,1e-08,64549.0,64548.0,5.42244943]
[1721240377328,1e-08,64549.0,64548.0,5.92244943]
[1721240378591,1e-08,64549.0,64548.0,5.57907516]
[1721240378800,1e-08,64549.0,64548.0,5.92242492]
[1721240379033,1e-08,64549.0,64548.0,5.60096776]
[1721240379185,1e-08,64549.0,64548.0,5.92241851]
[1721240380323,1e-08,64549.0,64548.0,5.92242742]
[1721240380889,1e-08,64549.0,64548.0,5.97712742]
[1721240381082,1e-08,64549.0,64548.0,5.97712242]
[1721240381861,1e-08,64549.0,64548.0,5.97712002]
[1721240383593,1e-08,64549.0,64548.0,5.16727402]
[1721240383975,1e-08,64549.0,64548.0,4.96727402]
[1721240384187,1e-08,64549.0,64548.0,5.16727402]
[1721240384395,1e-08,64549.0,64548.0,5.66727402]
[1721240384645,1e-08,64549.0,64548.0,5.66818702]
[1721240384848,1e-08,64549.0,64548.0,5.97805045]
[1721240385060,1e-08,64549.0,64548.0,6.69132579]
[1721240385255,1e-08,64549.0,64548.0,6.46687196]
[1721240385581,1e-08,64549.0,64548.0,6.56238508]
[1721240385779,1e-08,64549.0,64548.0,6.56238505]
[1721240385985,1e-08,64549.0,64548.0,6.45286565]
[1721240386327,1e-08,64549.0,64548.0,6.56241209]
[1721240387195,1e-08,64549.0,64548.0,5.64051209]
[1721240387402,1e-08,64549.0,64548.0,6.14777426]
[1721240387603,1e-08,64549.0,64548.0,6.08477426]
[1721240387838,1e-08,64549.0,64548.0,6.07077426]
[1721240388039,1e-08,64549.0,64548.0,6.07074631]
[1721240388462,1e-08,64549.0,64548.0,6.07074629]
[1721240388673,1e-08,64549.0,64548.0,6.05674629]
[1721240388898,1e-08,64549.0,64548.0,6.07074629]
[1721240389082,1e-08,64549.0,64548.0,6.18030206]
[1721240389289,0.05161279,64555.0,64554.0,1.084363]
[1721240389490,0.05161279,64555.0,64554.0,2.38246612]
[1721240389795,0.05161279,64555.0,64554.0,3.04725643]
[1721240389985,0.05161279,64555.0,64554.0,4.54725643]
[1721240390204,0.05161279,64555.0,64554.0,4.66247397]
[1721240390539,0.05161279,64555.0,64554.0,4.54725643]
[1721240390747,0.05161279,64555.0,64554.0,4.66247397]
[1721240391176,0.05161279,64555.0,64554.0,4.67647313]
[1721240391387,0.05161279,64555.0,64554.0,4.69047313]
[1721240391818,0.05161279,64555.0,64554.0,4.93507359]
[1721240393010,0.05161279,64555.0,64554.0,5.15697359]
[1721240394292,0.05161279,64555.0,64554.0,4.49218412]
[1721240394505,0.05161279,64555.0,64554.0,5.15695827]
[1721240396015,0.05161279,64555.0,64554.0,5.15695668]
[1721240396838,0.05161279,64555.0,64554.0,5.20856968]
[1721240397577,0.05161279,64555.0,64554.0,5.20856965]
[1721240397942,0.05161279,64555.0,64554.0,5.20856963]
[1721240399163,0.05161279,64555.0,64554.0,5.23958583]
[1721240399406,0.05161279,64555.0,64554.0,5.75788891]
[1721240399760,0.05161279,64555.0,64554.0,5.85344104]
[1721240399966,0.05161279,64555.0,64554.0,5.75788891]
[1721240400167,0.05161279,64555.0,64554.0,5.74388891]
[1721240400371,0.05161279,64555.0,64554.0,5.61048891]
[1721240400612,0.05161279,64555.0,64554.0,5.62446908]
[1721240401744,0.05161279,64555.0,64554.0,5.14245108]
[1721240401964,0.05161279,64555.0,64554.0,5.15645108]
[1721240402216,0.05161279,64555.0,64554.0,5.17045108]
[1721240402404,0.05161279,64555.0,64554.0,5.28915108]
[1721240402619,0.05161279,64555.0,64554.0,5.25315108]
[1721240402843,0.19561279,64555.0,64554.0,5.13663674]
[1721240403024,0.19561279,64555.0,64554.0,5.18692273]
[1721240403223,0.19561279,64555.0,64554.0,4.98692273]
[1721240403426,0.19561279,64555.0,64554.0,5.17292273]
[1721240403768,0.19561279,64555.0,64554.0,5.18692273]
[1721240404390,0.11511279,64555.0,64554.0,5.17292273]
[1721240404675,0.11511279,64555.0,64554.0,5.18692273]
[1721240404817,0.11511279,64555.0,64554.0,5.68692273]
[1721240405020,0.11511279,64555.0,64554.0,5.70092273]
[1721240405199,0.11511279,64555.0,64554.0,5.68692273]
[1721240405401,0.11511279,64555.0,64554.0,4.98692273]
[1721240405637,0.11511279,64555.0,64554.0,5.18692273]
[1721240406192,0.11511279,64555.0,64554.0,5.18694565]
[1721240406404,0.11511279,64555.0,64554.0,2.42507753]
[1721240406588,0.19441279,64555.0,64554.0,3.15415315]
[1721240406774,0.19441279,64555.0,64554.0,2.29415315]
[1721240406996,0.19441279,64555.0,64554.0,2.24886191]
[1721240407191,0.19441279,64555.0,64554.0,2.23486191]
[1721240407544,0.19441279,64555.0,64554.0,0.54144032]
[1721240407744,0.20248744,64555.0,64554.0,0.36257297]
[1721240408304,0.19948744,64555.0,64554.0,0.81329997]
[1721240408501,0.19948744,64555.0,64554.0,1.30201832]
[1721240408642,0.19141279,64555.0,64554.0,1.31601832]
[1721240408867,0.19141279,64555.0,64554.0,1.68600855]
[1721240409066,0.19141279,64555.0,64554.0,1.61184124]
[1721240409320,0.19141279,64555.0,64554.0,1.61184069]
[1721240409461,0.19141279,64555.0,64554.0,1.64184069]
[1721240410087,0.19141279,64555.0,64554.0,1.71106175]
[1721240410290,0.19141279,64555.0,64554.0,2.06243443]
[1721240410537,0.19141279,64555.0,64554.0,1.98521337]
[1721240410749,0.19141279,64555.0,64554.0,2.05445259]
[1721240410956,0.11231279,64555.0,64554.0,2.06145259]
[1721240411148,0.11231279,64555.0,64554.0,2.04745259]
[1721240411364,0.11231279,64555.0,64554.0,2.06145259]
[1721240411538,0.11231279,64555.0,64554.0,1.7090015]
[1721240411738,0.11231279,64555.0,64554.0,1.6950015]
[1721240411946,0.19341279,64555.0,64554.0,0.54147769]
[1721240412193,0.19341279,64555.0,64554.0,0.23399474]
[1721240412382,0.19341279,64555.0,64554.0,0.34859965]
[1721240412538,0.20141529,64555.0,64554.0,0.33459965]
[1721240412734,0.19341279,64555.0,64554.0,0.33459965]
[1721240412935,1.19341279,64555.0,64554.0,0.34859965]
[1721240413167,1.20141529,64555.0,64554.0,0.34859965]
[1721240413566,1.20141529,64555.0,64554.0,0.50350865]
[1721240413787,1.20141529,64555.0,64554.0,0.51750865]
[1721240414130,1.20141529,64555.0,64554.0,0.34859965]
[1721240414336,1.20141529,64555.0,64554.0,0.36259965]
[1721240414598,1.20141529,64555.0,64554.0,0.33459965]
[1721240414834,1.20141529,64555.0,64554.0,0.34859965]
[1721240415107,1.20141529,64555.0,64554.0,0.36259965]
[1721240415304,1.20141529,64555.0,64554.0,0.34860059]
[1721240415714,1.20141529,64555.0,64554.0,0.23399474]
[1721240415915,1.20141529,64555.0,64554.0,0.36260129]
[1721240416321,1.20141529,64555.0,64554.0,0.50351029]
[1721240416530,1.20141529,64555.0,64554.0,0.51751029]
[1721240416734,1.20141529,64555.0,64554.0,0.36260129]
[1721240416935,1.20141529,64555.0,64554.0,0.36260364]
[1721240417501,1.20224529,64555.0,64554.0,0.34860364]
[1721240417723,1.20224529,64555.0,64554.0,0.36260364]
[1721240418451,1.20224529,64555.0,64554.0,0.34860442]
[1721240418975,1.20224529,64555.0,64554.0,0.36260442]
[1721240419337,1.20224529,64555.0,64554.0,0.34860442]
[1721240419538,1.20224529,64555.0,64554.0,0.36260442]
[1721240421012,1.20224529,64555.0,64554.0,0.23399474]
[1721240421261,1.20224529,64555.0,64554.0,0.36260531]
[1721240421667,1.20224529,64555.0,64554.0,0.36260476]
[1721240422415,1.20224529,64555.0,64554.0,0.51751376]
[1721240422546,1.20224529,64555.0,64554.0,0.82733176]
[1721240422745,1.20224529,64555.0,64554.0,0.51751376]
[1721240424809,1.20224529,64555.0,64554.0,0.51751521]
[1721240425012,1.20224529,64555.0,64554.0,0.69872174]
[1721240425228,1.20224529,64555.0,64554.0,1.13715]
[1721240425229,1.11314279,64555.0,64554.0,1.13715]
[1721240425445,1.05244279,64555.0,64554.0,2.389968]
[1721240425653,1.05244279,64555.0,64554.0,3.65090139]
[1721240425879,1.05244279,64555.0,64554.0,3.75880905]
[1721240426393,1.05244279,64555.0,64554.0,3.71270139]
[1721240426590,1.05244279,64555.0,64554.0,4.59270139]
[1721240427231,1.05244279,64555.0,64554.0,4.63880515]
[1721240427436,1.05244279,64555.0,64554.0,4.59270139]
[1721240427643,1.05244279,64555.0,64554.0,4.63881125]
[1721240427884,1.05244279,64555.0,64554.0,4.63875588]
[1721240429244,1.05244279,64555.0,64554.0,4.59264602]
[1721240429867,1.05244279,64555.0,64554.0,3.71264602]
[1721240430213,1.05244279,64555.0,64554.0,3.61876349]
[1721240430964,1.05244279,64555.0,64554.0,3.61876662]
[1721240431374,1.06044576,64555.0,64554.0,3.61876662]
[1721240431716,1.06044576,64555.0,64554.0,4.40876662]
[1721240431915,1.05244279,64555.0,64554.0,4.40876662]
[1721240432289,1.05244279,64555.0,64554.0,4.36264746]
[1721240433389,1.05244279,64555.0,64554.0,4.83948641]
[1721240433558,1.05244279,64555.0,64554.0,4.82030767]
[1721240434064,1.05244279,64555.0,64554.0,4.25189895]
[1721240434238,1.05244279,64555.0,64554.0,4.9809765]
[1721240434448,1.05244279,64555.0,64554.0,4.25189895]
[1721240434649,1.05244279,64555.0,64554.0,5.08224844]
[1721240434848,1.05244279,64555.0,64554.0,4.98096806]
[1721240435298,1.05244279,64555.0,64554.0,4.82024485]
[1721240435513,1.05244279,64555.0,64554.0,4.80624485]
[1721240435716,1.05244279,64555.0,64554.0,3.96625329]
[1721240435924,1.05244279,64555.0,64554.0,4.14097651]
[1721240436146,1.05244279,64555.0,64554.0,4.89097651]
[1721240436369,1.05244279,64555.0,64554.0,4.73025329]
[1721240438986,1.05244279,64555.0,64554.0,3.98025329]
[1721240439111,1.05244279,64555.0,64554.0,4.75025329]
[1721240439506,1.05244279,64555.0,64554.0,3.98025329]
[1721240440142,1.05244279,64555.0,64554.0,4.72025329]
[1721240441482,1.05244279,64555.0,64554.0,3.98025329]
[1721240442445,1.19204279,64555.0,64554.0,2.17043529]
[1721240442728,1.20010772,64555.0,64554.0,2.23957673]
[1721240443294,1.20010772,64555.0,64554.0,1.80890516]
[1721240443507,1.20010772,64555.0,64554.0,1.43001966]
[1721240443704,1.20010772,64555.0,64554.0,1.44852056]
[1721240443932,1.20010772,64555.0,64554.0,1.10853974]
[1721240444311,1.20010772,64555.0,64554.0,1.23713795]
[1721240444521,1.20010772,64555.0,64554.0,1.44853636]
[1721240444648,1.20010772,64555.0,64554.0,1.23713795]
[1721240444867,1.20010772,64555.0,64554.0,1.43003527]
[1721240445051,1.20010772,64555.0,64554.0,1.10853974]
[1721240445250,1.20010772,64555.0,64554.0,1.23713706]
[1721240445480,1.20010772,64555.0,64554.0,1.43003304]
[1721240446417,1.20010772,64555.0,64554.0,1.23713706]
[1721240446598,1.20010772,64555.0,64554.0,1.43003477]
[1721240446764,1.20010772,64555.0,64554.0,1.23713775]
[1721240446979,1.20010772,64555.0,64554.0,1.43003477]
[1721240448623,1.20010772,64555.0,64554.0,0.4810953]
[1721240448820,1.20010772,64555.0,64554.0,0.92731975]
[1721240449652,1.20010772,64555.0,64554.0,0.79872174]
[1721240449862,1.20010772,64555.0,64554.0,0.92732449]
[1721240451210,1.20010772,64555.0,64554.0,1.21590854]
[1721240451432,1.20010772,64555.0,64554.0,1.00449928]
[1721240451642,1.20010772,64555.0,64554.0,1.21590877]
[1721240452990,1.20010772,64555.0,64554.0,1.21590197]
[1721240453163,1.20010772,64555.0,64554.0,1.52571997]
[1721240453393,1.20010772,64555.0,64554.0,1.52571677]
[1721240453519,1.20010772,64555.0,64554.0,1.33281649]
[1721240453733,1.20010772,64555.0,64554.0,1.52571677]
[1721240453931,1.20010772,64555.0,64554.0,1.2556417]
[1721240454150,1.20010772,64555.0,64554.0,1.23713993]
[1721240454399,1.20010772,64555.0,64554.0,1.10853974]
[1721240454722,1.20010772,64555.0,64554.0,0.9273271]
[1721240456069,1.20010772,64555.0,64554.0,0.9273273]
[1721240457695,1.20010772,64555.0,64554.0,0.94583209]
[1721240457907,1.20010772,64555.0,64554.0,1.13873402]
[1721240458108,1.06050772,64555.0,64554.0,1.43004723]
[1721240458311,1.06050772,64555.0,64554.0,1.45304723]
[1721240458542,1.06050772,64555.0,64554.0,1.8089996]
[1721240458752,1.06050772,64555.0,64554.0,1.80899948]
[1721240458946,1.06050772,64555.0,64554.0,1.76286523]
[1721240459384,1.06050772,64555.0,64554.0,1.76282855]
[1721240459728,1.06050772,64555.0,64554.0,3.26282855]
[1721240460768,1.06050772,64555.0,64554.0,2.95301055]
[1721240461067,1.19870772,64555.0,64554.0,2.95301055]
[1721240461276,1.19870772,64555.0,64554.0,0.63599509]
[1721240461527,1.19870772,64555.0,64554.0,0.68180686]
[1721240461698,1.19870772,64555.0,64554.0,0.36259682]
[1721240461902,1.19870772,64555.0,64554.0,0.23399474]
[1721240462224,1.19870772,64555.0,64554.0,0.36260147]
[1721240463183,1.19870772,64555.0,64554.0,0.3626016]
[1721240463394,1.19870772,64555.0,64554.0,0.3486016]
[1721240463556,1.19870772,64555.0,64554.0,0.3346016]
[1721240463757,1.19870772,64555.0,64554.0,0.3626016]
[1721240463992,1.19870772,64555.0,64554.0,0.5175106]
[1721240464208,1.06050772,64555.0,64554.0,1.0273286]
[1721240464435,1.06050772,64555.0,64554.0,1.0503286]
[1721240464641,1.06050772,64555.0,64554.0,1.20353974]
[1721240464786,1.06050772,64555.0,64554.0,1.34614334]
[1721240464994,1.06050772,64555.0,64554.0,1.36014334]
[1721240465377,1.20080772,64555.0,64554.0,0.33459834]
[1721240465569,1.20080772,64555.0,64554.0,0.34859834]
[1721240467090,1.20080772,64555.0,64554.0,0.36259834]
[1721240467513,1.20080772,64555.0,64554.0,0.34859834]
[1721240467631,1.20080772,64555.0,64554.0,0.23399474]
[1721240467833,1.20080772,64555.0,64554.0,0.36260049]
[1721240470910,1.20053049,64555.0,64554.0,0.23399474]
[1721240471112,1.20053049,64555.0,64554.0,0.36259979]
[1721240471325,1.20053049,64555.0,64554.0,0.23399474]
[1721240471535,1.20053049,64555.0,64554.0,0.36260036]
[1721240472148,1.06023049,64555.0,64554.0,1.13714536]
[1721240472366,1.06023049,64555.0,64554.0,1.35305116]
[1721240472583,1.06023049,64555.0,64554.0,1.84264991]
[1721240472989,1.06023049,64555.0,64554.0,1.84194991]
[1721240473610,1.06023049,64555.0,64554.0,1.88808437]
[1721240473979,1.06023049,64555.0,64554.0,1.88738437]
[1721240474203,1.06023049,64555.0,64554.0,1.88737402]
[1721240474758,1.06023049,64555.0,64554.0,1.88677402]
[1721240474934,1.06023049,64555.0,64554.0,1.88667402]
[1721240475346,1.06023049,64555.0,64554.0,0.85442002]
[1721240475548,1.06023049,64555.0,64554.0,1.16423802]
[1721240475751,1.06023049,64555.0,64554.0,0.65337679]
[1721240475752,1.12533049,64555.0,64554.0,0.65337679]
[1721240476050,1.12533049,64555.0,64554.0,0.67188059]
[1721240476630,1.12533049,64555.0,64554.0,0.46048756]
[1721240476902,1.12533049,64555.0,64554.0,0.36048756]
[1721240477278,1.12533049,64555.0,64554.0,0.23189474]
[1721240477488,1.12533049,64555.0,64554.0,0.3605007]
[1721240478410,1.20583049,64555.0,64554.0,0.15660596]
[1721240478930,1.20583049,64555.0,64554.0,0.15662267]
[1721240479107,1.20583049,64555.0,64554.0,0.14262267]
[1721240479557,1.20583049,64555.0,64554.0,0.15662267]
[1721240480165,1.20583049,64555.0,64554.0,0.014]
[1721240480360,1.20583049,64555.0,64554.0,0.15362666]
[1721240480564,1.20583049,64555.0,64554.0,0.011]
[1721240480763,1.20583049,64555.0,64554.0,0.13962704]
[1721240481005,1.20583049,64555.0,64554.0,0.15162704]
[1721240481220,1.20583049,64555.0,64554.0,0.023]
[1721240481431,1.82545649,64555.0,64554.0,0.15162736]
[1721240481664,1.67054949,64555.0,64554.0,0.023]
[1721240483233,1.36073649,64555.0,64554.0,0.023]
[1721240483810,1.67054949,64555.0,64554.0,0.023]
[1721240485235,2.29017549,64555.0,64554.0,0.023]
[1721240486236,2.29017549,64555.0,64554.0,0.012]
[1721240486542,2.29017549,64555.0,64554.0,0.016]
[1721240487529,2.34017549,64555.0,64554.0,0.016]
[1721240487734,2.34017549,64555.0,64554.0,0.004]
[1721240487937,2.34017549,64555.0,64554.0,0.009]
[1721240489094,2.29017549,64555.0,64554.0,0.005]
[1721240489324,0.916867,64552.0,64551.0,0.000913]
[1721240489700,0.92451972,64552.0,64551.0,0.000913]
[1721240489900,1.28434672,64552.0,64551.0,0.000913]
[1721240491742,1.28434672,64552.0,64551.0,0.001913]
[1721240491945,1.74855546,64552.0,64551.0,0.001913]
[1721240492174,1.84855546,64552.0,64551.0,0.000913]
[1721240492306,1.85155546,64552.0,64551.0,0.001913]
[1721240492714,1.85155546,64552.0,64551.0,0.000913]
[1721240492916,1.85155546,64552.0,64551.0,0.001913]
[1721240492917,1.85355546,64552.0,64551.0,0.001913]
[1721240493533,1.85155546,64552.0,64551.0,0.000913]
[1721240493967,1.85655546,64552.0,64551.0,0.001913]
[1721240494342,1.84855546,64552.0,64551.0,0.000913]
[1721240494542,1.38434672,64552.0,64551.0,0.000913]
[1721240494772,1.39734672,64552.0,64551.0,0.002913]
[1721240494964,1.39234672,64552.0,64551.0,0.001913]
[1721240495417,1.38934672,64552.0,64551.0,0.001913]
[1721240495571,1.38934672,64552.0,64551.0,0.000913]
[1721240495976,1.40234672,64552.0,64551.0,0.002913]
[1721240496840,1.39434672,64552.0,64551.0,0.001913]
[1721240497036,1.39920093,64552.0,64551.0,0.001913]
[1721240497238,1.70793224,64552.0,64551.0,0.001913]
[1721240497800,2.00775924,64552.0,64551.0,0.000913]
[1721240497998,1.85840967,64552.0,64551.0,0.001913]
[1721240498207,1.86540967,64552.0,64551.0,0.002913]
[1721240498562,1.85340967,64552.0,64551.0,0.000913]
[1721240498760,1.86040967,64552.0,64551.0,0.001913]
[1721240499181,1.86040967,64552.0,64551.0,0.002913]
[1721240499182,1.86540967,64552.0,64551.0,0.002913]
[1721240499397,2.04975924,64552.0,64551.0,0.003913]
[1721240499587,2.04475924,64552.0,64551.0,0.002913]
[1721240499791,0.343445,64539.0,64538.0,0.100913]
[1721240500370,0.97364351,64539.0,64538.0,0.100913]
[1721240500777,0.14891851,64539.0,64538.0,0.100913]
[1721240500978,0.30386351,64539.0,64538.0,0.100913]
[1721240501579,0.14891851,64539.0,64538.0,0.100913]
[1721240501793,0.14891851,64539.0,64538.0,0.103913]
[1721240501794,0.92364351,64539.0,64538.0,0.103913]
[1721240501987,0.97364351,64539.0,64538.0,0.103913]
[1721240502540,1.6771344,64539.0,64538.0,0.102913]
[1721240502672,1.9870244,64539.0,64538.0,0.102913]
[1721240502853,1.9870244,64539.0,64538.0,0.100913]
[1721240502854,2.0100244,64539.0,64538.0,0.100913]
[1721240503274,2.0100244,64539.0,64538.0,0.105913]
[1721240504359,2.3199144,64539.0,64538.0,0.105913]
[1721240504570,2.3199144,64539.0,64538.0,0.100913]
[1721240505082,2.3319144,64539.0,64538.0,0.102913]
[1721240505231,2.3319144,64539.0,64538.0,0.101913]
[1721240505232,2.3249144,64539.0,64538.0,0.101913]
[1721240505438,2.3199144,64539.0,64538.0,0.100913]
[1721240506040,2.3269144,64539.0,64538.0,0.101913]
[1721240506303,2.3319144,64539.0,64538.0,0.102913]
[1721240506504,2.3249144,64539.0,64538.0,0.101913]
[1721240507532,2.3249144,64539.0,64538.0,0.07643475]
[1721240507878,2.3269144,64539.0,64538.0,0.07643475]
[1721240508032,2.3249144,64539.0,64538.0,0.07643475]
[1721240508431,2.3249144,64539.0,64538.0,0.07743475]
[1721240508432,2.3319144,64539.0,64538.0,0.07743475]
[1721240508711,2.3319144,64539.0,64538.0,0.07643475]
[1721240509081,2.3389144,64539.0,64538.0,0.07743475]
[1721240510573,2.0290244,64539.0,64538.0,0.07743475]
[1721240510766,2.0240244,64539.0,64538.0,0.07643475]
[1721240510918,2.2312244,64539.0,64538.0,0.07543475]
[1721240511249,2.2312244,64539.0,64538.0,0.07743475]
[1721240511250,2.2432244,64539.0,64538.0,0.07743475]
[1721240511451,2.2432244,64539.0,64538.0,0.07543475]
[1721240511452,2.2382244,64539.0,64538.0,0.07543475]
[1721240511742,2.2222244,64539.0,64538.0,0.07643475]
[1721240511891,2.2272244,64539.0,64538.0,0.07834775]
[1721240512249,1.61956351,64539.0,64538.0,0.07734775]
[1721240512651,1.61056351,64539.0,64538.0,0.07734775]
[1721240512828,1.30767351,64539.0,64538.0,0.07834775]
[1721240513033,0.02324851,64539.0,64538.0,0.07834775]
[1721240513986,0.01824851,64539.0,64538.0,0.07734775]
[1721240514106,0.01124851,64539.0,64538.0,0.07634775]
[1721240514306,0.01624851,64539.0,64538.0,0.15504775]
[1721240514600,0.01624851,64539.0,64538.0,0.28370147]